fUST/lending_fUST_20250702
["ID","MTS","AMOUNT","RATE_DAILY","PERIOD"]
[368958833,1751411433255,-460.0,0.00017254,2]
[368958834,1751411433265,-460.0,0.00017255,2]
[368958835,1751411433274,-460.0,0.00017255,2]
[368958836,1751411433284,-161.16572637,0.00017255,2]
[368958837,1751411433294,-460.0,0.00017255,2]
[368958838,1751411433303,-460.0,0.00017255,2]
[368958839,1751411433312,-445.24797398,0.00017255,2]
[368958840,1751411433322,-460.0,0.00017255,2]
[368958841,1751411433332,-460.0,0.00017255,2]
[368958842,1751411433342,-460.0,0.00017255,2]
[368958843,1751411433351,-460.0,0.00017256,2]
[368958844,1751411433360,-460.0,0.00017256,2]
[368958845,1751411433370,-500.0,0.00017273,2]
[368958846,1751411433379,-460.0,0.00017526,2]
[368958847,1751411433388,-460.0,0.00017526,2]
[368958848,1751411433398,-460.0,0.00017526,2]
[368958849,1751411433408,-460.0,0.00017526,2]
[368958850,1751411433417,-460.0,0.00017526,2]
[368958851,1751411433427,-460.0,0.00017526,2]
[368958852,1751411433437,-460.0,0.00017526,2]
[368958853,1751411433447,-317.66,0.00017527,2]
[368958854,1751411433456,-460.0,0.00017527,2]
[368958855,1751411433465,-460.0,0.00017527,2]
[368958856,1751411433475,-602.22,0.00017527,2]
[368958857,1751411433484,-460.0,0.00017527,2]
[368958858,1751411433494,-460.0,0.00017527,2]
[368958859,1751411433507,-460.0,0.00017527,2]
[368958860,1751411433516,-460.0,0.00017527,2]
[368958861,1751411433525,-460.0,0.00017527,2]
[368958862,1751411433535,-460.0,0.00017527,2]
[368958863,1751411433545,-460.0,0.00017527,2]
[368958864,1751411433554,-460.0,0.00017527,2]
[368958865,1751411433563,-460.0,0.00017527,2]
[368958866,1751411433572,-460.0,0.00017527,2]
[368958867,1751411433582,-460.0,0.00017527,2]
[368958868,1751411433591,-460.0,0.00017527,2]
[368958869,1751411433600,-460.0,0.00017527,2]
[368958870,1751411433610,-460.0,0.00017527,2]
[368958871,1751411433619,-460.0,0.00017527,2]
[368958872,1751411433628,-460.0,0.00017527,2]
[368958873,1751411433638,-460.0,0.00017527,2]
[368958874,1751411433648,-460.0,0.00017527,2]
[368958875,1751411433658,-460.0,0.00017527,2]
[368958876,1751411433667,-460.0,0.00017527,2]
[368958877,1751411433677,-460.0,0.00017527,2]
[368958878,1751411433686,-460.0,0.00017527,2]
[368958879,1751411433695,-460.0,0.00017527,2]
[368958880,1751411433704,-468.62824591,0.00017527,2]
[368958881,1751411433714,-249.66225402,0.00017527,2]
[368958888,1751411438117,-460.0,0.00017252,2]
[368958890,1751411438127,-210.33774598,0.00017527,2]
[368958892,1751411438136,-460.0,0.00017527,2]
[368958894,1751411438146,-460.0,0.00017527,2]
[368958895,1751411438156,-460.0,0.00017527,2]
[368958898,1751411438166,-460.0,0.00017527,2]
[368958900,1751411438175,-460.0,0.00017528,2]
[368958901,1751411438185,-460.0,0.00017528,2]
[368958904,1751411438194,-460.0,0.00017528,2]
[368958906,1751411438204,-460.0,0.00017528,2]
[368958908,1751411438214,-460.0,0.00017528,2]
[368958909,1751411438225,-404.72021342,0.00017528,2]
[368958914,1751411438309,-55.27978658,0.00017528,2]
[368958915,1751411438321,-460.0,0.00017528,2]
[368958916,1751411438330,-460.0,0.00017528,2]
[368958917,1751411438340,-460.0,0.00017528,2]
[368958919,1751411438350,-460.0,0.00017528,2]
[368958920,1751411438359,-460.0,0.00017528,2]
[368958921,1751411438369,-501.72407384,0.00017573,2]
[368958922,1751411438381,-186.06798606,0.00017573,2]
[368958923,1751411438391,-500.0,0.00017573,2]
[368958924,1751411438401,-486.3677541,0.00017573,2]
[368958925,1751411438412,-13.6322459,0.00017573,2]
[368958926,1751411438423,-460.0,0.000178,2]
[368958927,1751411438433,-0.92115653,0.000178,2]
[368958928,1751411438445,-459.07884347,0.000178,2]
[368958929,1751411438455,-1.92115653,0.000178,2]
[368958930,1751411438466,-458.07884347,0.000178,2]
[368958931,1751411438476,-83.49682023,0.000178,2]
[368958932,1751411438491,-376.50317977,0.000178,2]
[368958933,1751411438501,-460.0,0.000178,2]
[368958934,1751411438516,-460.0,0.00017801,2]
[368958935,1751411438526,-289.36986443,0.00017801,2]
[368959005,1751411440569,-39.80390937,0.00017801,2]
[368959008,1751411440579,-460.0,0.00017801,2]
[368959010,1751411440589,-460.0,0.00017801,2]
[368959012,1751411440600,-460.0,0.00017801,2]
[368959014,1751411440609,-11.22445824,0.00017801,2]
[368959314,1751411443257,-460.0,0.00017252,2]
[368959316,1751411443267,-448.77554176,0.00017801,2]
[368959318,1751411443276,-460.0,0.00017801,2]
[368959320,1751411443286,-460.0,0.00017801,2]
[368959322,1751411443295,-460.0,0.00017801,2]
[368959324,1751411443305,-515.02,0.00017801,2]
[368959326,1751411443315,-460.0,0.00017801,2]
[368959328,1751411443324,-460.0,0.00017801,2]
[368959330,1751411443334,-460.0,0.00017801,2]
[368959332,1751411443343,-460.0,0.00017801,2]
[368959334,1751411443353,-460.0,0.00017801,2]
[368959336,1751411443363,-460.0,0.00017801,2]
[368959338,1751411443372,-460.0,0.00017801,2]
[368959340,1751411443381,-460.0,0.00017801,2]
[368959342,1751411443390,-460.0,0.00017801,2]
[368959344,1751411443399,-460.0,0.00017801,2]
[368959346,1751411443408,-482.77,0.00017801,2]
[368959348,1751411443417,-460.0,0.00017801,2]
[368959350,1751411443427,-460.0,0.00017801,2]
[368959352,1751411443436,-460.0,0.00017801,2]
[368959354,1751411443445,-142.58536855,0.00017801,2]
[368959369,1751411443568,-460.0,0.00017526,2]
[368959371,1751411443580,-317.41463145,0.00017801,2]
[368959373,1751411443589,-460.0,0.00017801,2]
[368959374,1751411443599,-460.0,0.00017801,2]
[368959377,1751411443610,-460.0,0.00017802,2]
[368959378,1751411443619,-460.0,0.00017802,2]
[368959380,1751411443628,-182.58536893,0.00017802,2]
[368959383,1751411443640,-277.41463107,0.00017802,2]
[368959385,1751411443651,-460.0,0.00017802,2]
[368959387,1751411443660,-460.0,0.00017802,2]
[368959389,1751411443669,-460.0,0.00017802,2]
[368959391,1751411443679,-460.0,0.00017802,2]
[368959393,1751411443688,-460.0,0.00017802,2]
[368959395,1751411443697,-460.0,0.00017802,2]
[368959397,1751411443706,-500.0,0.00017821,2]
[368959399,1751411443716,-500.0,0.00017873,2]
[368959401,1751411443725,-500.0,0.00017873,2]
[368959403,1751411443734,-428.52617537,0.00017873,2]
[368959405,1751411443744,-500.0,0.00017894,2]
[368959407,1751411443754,-500.0,0.000179,2]
[368959409,1751411443763,-500.0,0.000179,2]
[368959411,1751411443773,-500.0,0.000179,2]
[368959413,1751411443783,-500.0,0.000179,2]
[368959415,1751411443792,-500.0,0.00017924,2]
[368959417,1751411443801,-418.77242476,0.00017924,2]
[368959419,1751411443811,-531.90011129,0.00018074,2]
[368959421,1751411443821,-460.0,0.00018074,2]
[368959423,1751411443831,-460.0,0.00018074,2]
[368959425,1751411443841,-460.0,0.00018074,2]
[368959427,1751411443851,-460.0,0.00018075,2]
[368959429,1751411443861,-460.0,0.00018075,2]
[368959431,1751411443870,-460.0,0.00018075,2]
[368959433,1751411443879,-460.0,0.00018075,2]
[368959435,1751411443889,-460.0,0.00018075,2]
[368959437,1751411443898,-460.0,0.00018075,2]
[368959439,1751411443908,-157.08,0.00018075,2]
[368959441,1751411443917,-371.16,0.00018075,2]
[368959442,1751411443927,-460.0,0.00018075,2]
[368959444,1751411443936,-460.0,0.00018075,2]
[368959446,1751411443946,-460.0,0.00018075,2]
[368959448,1751411443955,-460.0,0.00018075,2]
[368959450,1751411443964,-600.34,0.00018075,2]
[368959452,1751411443974,-460.0,0.00018076,2]
[368959454,1751411443983,-460.0,0.00018076,2]
[368959456,1751411443993,-460.0,0.00018076,2]
[368959458,1751411444003,-460.0,0.00018076,2]
[368959460,1751411444013,-460.0,0.00018076,2]
[368959462,1751411444023,-460.0,0.00018076,2]
[368959464,1751411444032,-173.82402907,0.00018281,2]
[368959466,1751411444042,-460.0,0.00018348,2]
[368959468,1751411444051,-460.0,0.00018348,2]
[368959470,1751411444061,-460.0,0.00018348,2]
[368959472,1751411444072,-460.0,0.00018349,2]
[368959474,1751411444083,-460.0,0.00018349,2]
[368959476,1751411444097,-425.53288333,0.00018349,2]
[368959478,1751411444108,-460.0,0.00018349,2]
[368959480,1751411444117,-460.0,0.00018349,2]
[368959482,1751411444126,-460.0,0.00018349,2]
[368959484,1751411444136,-491.27,0.00018349,2]
[368959486,1751411444145,-469.64,0.00018349,2]
[368959489,1751411444165,-490.02,0.0001835,2]
[368959491,1751411444177,-460.0,0.0001835,2]
[368959493,1751411444186,-460.0,0.0001835,2]
[368959495,1751411444196,-460.0,0.0001835,2]
[368959497,1751411444206,-460.0,0.0001835,2]
[368959499,1751411444215,-460.0,0.0001835,2]
[368959501,1751411444226,-451.73620084,0.00018421,2]
[368959503,1751411444236,-193.78727342,0.00018442,2]
[368959505,1751411444247,-500.0,0.00018448,2]
[368959507,1751411444258,-754.83212359,0.00018448,2]
[368959509,1751411444268,-1000.0,0.00018448,2]
[368959511,1751411444279,-1000.0,0.00018471,2]
[368959513,1751411444289,-526.96,0.00018622,2]
[368959515,1751411444301,-460.0,0.00018622,2]
[368959517,1751411444311,-460.0,0.00018622,2]
[368959519,1751411444320,-460.0,0.00018623,2]
[368959521,1751411444331,-193.04,0.00018623,2]
[368959523,1751411444341,-460.0,0.00018623,2]
[368959525,1751411444351,-444.94,0.00018623,2]
[368959527,1751411444361,-460.0,0.00018623,2]
[368959529,1751411444370,-461.9,0.00018624,2]
[368959531,1751411444380,-460.0,0.00018624,2]
[368959533,1751411444390,-460.0,0.00018624,2]
[368959535,1751411444400,-460.0,0.00018624,2]
[368959537,1751411444411,-151.0,0.00018626,2]
[368959539,1751411444420,-215.01728679,0.00018725,2]
[368959541,1751411444430,-230.32585361,0.00018725,2]
[368959543,1751411444439,-160.0,0.00018725,2]
[368959545,1751411444449,-837.20943635,0.00018725,2]
[368959548,1751411444459,-847.53272281,0.00018725,2]
[368959550,1751411444469,-491.0,0.00018837,2]
[368959551,1751411444478,-420.0,0.00018837,2]
[368959554,1751411444488,-460.0,0.00018896,2]
[368959556,1751411444498,-460.0,0.00018896,2]
[368959558,1751411444509,-460.0,0.00018897,2]
[368959560,1751411444519,-460.0,0.00018897,2]
[368959562,1751411444528,-460.0,0.00018897,2]
[368959564,1751411444538,-460.0,0.00018898,2]
[368959566,1751411444549,-460.0,0.00018898,2]
[368959568,1751411444560,-419.94,0.00018898,2]
[368959570,1751411444571,-248.36816422,0.000189,2]
[368959572,1751411444585,-468.71374555,0.000189,2]
[368959574,1751411444595,-1200.0,0.0001893,2]
[368959576,1751411444604,-468.71374531,0.00019141,2]
[368959578,1751411444614,-460.0,0.0001917,2]
[368959581,1751411444624,-460.0,0.0001917,2]
[368959582,1751411444633,-460.0,0.00019171,2]
[368959584,1751411444642,-460.0,0.00019171,2]
[368959587,1751411444652,-460.0,0.00019171,2]
[368959589,1751411444661,-216.17,0.00019172,2]
[368959591,1751411444670,-460.0,0.00019172,2]
[368959593,1751411444681,-173.345534,0.00019178,2]
[368959595,1751411444690,-151.0,0.00019329,2]
[368959597,1751411444700,-468.71374531,0.00019383,2]
[368959599,1751411444709,-173.82402907,0.00019409,2]
[368959601,1751411444719,-460.0,0.00019444,2]
[368959602,1751411444728,-460.0,0.00019444,2]
[368959605,1751411444738,-508.14,0.00019445,2]
[368959607,1751411444747,-529.49,0.00019445,2]
[368959608,1751411444756,-460.0,0.00019445,2]
[368959611,1751411444766,-460.0,0.00019446,2]
[368959613,1751411444776,-468.71374531,0.00019624,2]
[368959615,1751411444793,-460.0,0.00019718,2]
[368959618,1751411444807,-460.0,0.00019718,2]
[368959620,1751411444821,-460.0,0.00019719,2]
[368959623,1751411444834,-460.0,0.0001972,2]
[368959625,1751411444849,-468.71374531,0.00019866,2]
[368959628,1751411444862,-460.0,0.00019992,2]
[368959630,1751411444873,-460.0,0.00019992,2]
[368959632,1751411444883,-460.0,0.00019993,2]
[368959635,1751411444896,-460.0,0.00019994,2]
[368959637,1751411444908,-300.0,0.0002,2]
[368959639,1751411444920,-468.71374531,0.00020107,2]
[368959641,1751411444932,-460.0,0.00020266,2]
[368959644,1751411444945,-460.0,0.00020266,2]
[368959646,1751411444956,-460.0,0.00020267,2]
[368959648,1751411444971,-460.0,0.00020268,2]
[368959651,1751411444985,-468.71374531,0.00020348,3]
[368959653,1751411444997,-173.82402907,0.00020537,2]
[368959655,1751411445011,-460.0,0.0002054,2]
[368959657,1751411445027,-460.0,0.0002054,2]
[368959660,1751411445041,-460.0,0.00020541,2]
[368959662,1751411445053,-460.0,0.00020542,2]
[368959664,1751411445064,-162.207051,0.00020548,2]
[368959666,1751411445075,-587.0,0.00020569,2]
[368959669,1751411445089,-468.71374531,0.0002059,3]
[368959671,1751411445101,-480.93,0.000206,2]
[368959674,1751411445113,-224.133,0.00020621,2]
[368959676,1751411445125,-282.08,0.00020814,2]
[368959678,1751411445137,-573.3052824,0.00020814,2]
[368959681,1751411445151,-460.0,0.00020815,2]
[368959683,1751411445163,-460.0,0.00020816,2]
[368959685,1751411445173,-468.71374531,0.00020831,4]
[368959687,1751411445185,-468.71374531,0.00021072,4]
[368959689,1751411445195,-460.0,0.00021089,2]
[368959692,1751411445206,-460.0,0.0002109,2]
[368959694,1751411445216,-500.0,0.0002129,2]
[368959696,1751411445227,-468.71374531,0.00021314,5]
[368959698,1751411445239,-460.0,0.00021363,2]
[368959700,1751411445249,-460.0,0.00021364,2]
[368959702,1751411445260,-468.71374531,0.00021555,5]
[368959705,1751411445272,-460.0,0.00021637,2]
[368959707,1751411445283,-460.0,0.00021638,2]
[368959709,1751411445296,-173.82402907,0.00021664,2]
[368959711,1751411445308,-468.71374531,0.00021797,6]
[368959714,1751411445320,-599.80000001,0.00021911,2]
[368959716,1751411445333,-460.0,0.00021912,2]
[368959718,1751411445345,-300.0,0.00021917,2]
[368959720,1751411445357,-10244.0,0.00022,15]
[368959723,1751411445369,-468.71374531,0.00022038,6]
[368959725,1751411445382,-460.0,0.00022186,2]
[368959727,1751411445394,-151.0,0.00022187,7]
[368959730,1751411445404,-468.71374531,0.00022279,6]
[368959732,1751411445414,-460.0,0.0002246,2]
[368959734,1751411445424,-468.71374531,0.00022521,7]
[368959736,1751411445434,-205.0,0.00022535,2]
[368959738,1751411445444,-205.0,0.00022539,2]
[368959740,1751411445455,-205.0,0.00022699,2]
[368959742,1751411445467,-455.78,0.00022734,2]
[368959744,1751411445480,-468.71374531,0.00022762,7]
[368959747,1751411445491,-173.82402907,0.00022792,2]
[368959749,1751411445504,-198.9221426,0.00022858,2]
[368959751,1751411445517,-468.71374531,0.00023003,8]
[368959753,1751411445528,-205.0,0.00023017,2]
[368959755,1751411445539,-168.0,0.00023133,2]
[368959757,1751411445550,-205.0,0.0002321,2]
[368959759,1751411445561,-707.6083067,0.00023233,2]
[368959762,1751411445571,-468.71374531,0.00023245,8]
[368959764,1751411445585,-575.3123006,0.00023256,2]
[368959766,1751411445597,-205.0,0.00023259,2]
[368959768,1751411445608,-207.4,0.0002346,2]
[368959770,1751411445619,-5000.0,0.0002346,2]
[368959773,1751411445630,-468.71374531,0.00023486,9]
[368959776,1751411445640,-2151.0,0.00023497,2]
[368959779,1751411445651,-242.31266766,0.00023556,2]
[368959781,1751411445662,-406.0,0.00023582,2]
[368959786,1751411445673,-468.71374531,0.00023728,9]
[368959789,1751411445684,-211.0,0.00023767,2]
[368959792,1751411445694,-150.0,0.00023828,2]
[368959795,1751411445705,-248.36816422,0.000239,2]
[368959798,1751411445716,-173.82402907,0.0002392,2]
[368959802,1751411445727,-211.0,0.0002394,2]
[368959805,1751411445739,-468.71374531,0.00023969,10]
[368959808,1751411445750,-524.61914904,0.00024,3]
[368959811,1751411445761,-524.61914904,0.00024,3]
[368959814,1751411445773,-209.0,0.0002404,2]
[368959817,1751411445783,-480.93,0.000241,7]
[368959821,1751411445794,-722.25,0.000242,2]
[368959823,1751411445805,-468.71374531,0.0002421,10]
[368959825,1751411445816,-211.0,0.00024299,2]
[368959827,1751411445827,-641.0,0.000243,2]
[368959829,1751411445838,-209.0,0.0002434,2]
[368959831,1751411445849,-500.0,0.0002435,2]
[368959833,1751411445860,-167.46290547,0.00024393,5]
[368959834,1751411445871,-846.607918,0.00024401,4]
[368959835,1751411445882,-468.71374531,0.00024452,11]
[368959836,1751411445893,-244.267594,0.00024552,2]
[368959837,1751411445903,-209.0,0.0002463,2]
[368959838,1751411445914,-616.0,0.00024654,2]
[368959839,1751411445924,-156.0068304,0.00024657,4]
[368959840,1751411445935,-468.71374531,0.00024693,11]
[368959841,1751411445946,-151.0,0.000248,7]
[368959842,1751411445957,-565.92318636,0.000248,2]
[368959843,1751411445968,-541.73647056,0.000248,2]
[368959844,1751411445979,-151.0,0.00024824,7]
[368959845,1751411445990,-215.0738,0.00024829,2]
[368959846,1751411446001,-616.0,0.00024844,2]
[368959847,1751411446011,-565.92318635,0.00024861,2]
[368959848,1751411446022,-678.07,0.00024861,10]
[368959849,1751411446033,-565.05,0.00024861,10]
[368959850,1751411446044,-470.88,0.00024861,10]
[368959851,1751411446056,-392.4,0.00024861,10]
[368959853,1751411446071,-503.57551948,0.00024873,2]
[368959856,1751411446083,-1000.0,0.00024876,2]
[368959858,1751411446095,-614.59276392,0.00024876,2]
[368959861,1751411446114,-385.40723608,0.00024876,2]
[368959863,1751411446127,-760.0,0.00024876,2]
[368959865,1751411446140,-180.57882352,0.00024889,2]
[368959868,1751411446152,-211.0,0.0002489,12]
[368959870,1751411446163,-180.57882352,0.0002489,2]
[368959872,1751411446175,-10161.57376035,0.00024893,2]
[368959889,1751411446327,-9854.18784661,0.00024893,2]
[368959892,1751411446344,-790.0325986,0.00024893,2]
[368959923,1751411446644,-250.7726584,0.00017253,2]
[368959925,1751411446654,-294.7015927,0.000178,2]
[368959927,1751411446667,-165.2984073,0.000178,2]
[368959929,1751411446676,-460.0,0.00018074,2]
[368959931,1751411446686,-99.6015927,0.00018348,2]
[368959933,1751411446697,-279.3984073,0.00018348,2]
[368959935,1751411446707,-2681.22888021,0.00024893,2]
[368959937,1751411446718,-451.70271249,0.00024899,2]
[368959940,1751411446730,-1123.88046378,0.00024899,2]
[368959942,1751411446739,-1902.71152765,0.00024899,7]
[368959944,1751411446750,-1939.47632976,0.00024899,7]
[368960291,1751411545273,188.18448791,0.00016734,2]
[368960292,1751411942947,1349.7863417,0.00016251,2]
[368960293,1751411999800,166.0,0.00016438,2]
[368960294,1751412002608,16589.45969167,0.00016252,2]
[368960295,1751412002632,8310.54030833,0.00016252,2]
[368960296,1751412006409,847.2,0.00025143,60]
[368960297,1751412054521,168.515074,0.00013699,2]
[368960300,1751412137083,2586.2312676,0.00016248,2]
[368960301,1751412301867,-198.92650515,0.00017145,2]
[368960302,1751412342278,-47.3365901,0.00017145,2]
[368960303,1751412342302,-173.82402907,0.00017151,2]
[368960304,1751412342327,-4493.90420075,0.00017153,2]
[368960305,1751412342349,-443.40318139,0.00017243,2]
[368960306,1751412352133,-577.25044678,0.00017243,2]
[368960307,1751412396038,697.311301,0.00016249,2]
[368960308,1751412430086,-179.34637183,0.00017243,2]
[368960309,1751412430113,-300.0,0.00017243,2]
[368960310,1751412430145,-300.0,0.00017244,2]
[368960311,1751412430171,-300.0,0.00017244,2]
[368960312,1751412430196,-300.0,0.00017244,2]
[368960313,1751412430226,-300.0,0.00017244,2]
[368960314,1751412430252,-1200.0,0.00017244,2]
[368960315,1751412430278,-500.0,0.00017244,2]
[368960316,1751412430302,-254.7172477,0.00017244,2]
[368960317,1751412430332,-500.0,0.00017244,2]
[368960318,1751412430356,-500.0,0.00017244,2]
[368960319,1751412430382,-500.0,0.00017244,2]
[368960320,1751412430406,-500.0,0.00017244,2]
[368960321,1751412430430,-500.0,0.00017244,2]
[368960322,1751412430454,-500.0,0.00017244,2]
[368960323,1751412430477,-500.0,0.00017244,2]
[368960324,1751412430501,-500.0,0.00017244,2]
[368960325,1751412430525,-500.0,0.00017244,2]
[368960326,1751412430550,-500.0,0.00017244,2]
[368960327,1751412430574,-500.0,0.00017244,2]
[368960328,1751412430598,-500.0,0.00017244,2]
[368960329,1751412430620,-500.0,0.00017244,2]
[368960330,1751412430644,-500.0,0.00017244,2]
[368960331,1751412430667,-500.0,0.00017244,2]
[368960332,1751412430691,-500.0,0.00017244,2]
[368960333,1751412430714,-500.0,0.00017244,2]
[368960334,1751412430739,-299.01310066,0.00017244,2]
[368960335,1751412430762,-500.0,0.00017244,2]
[368960336,1751412430786,-500.0,0.00017244,2]
[368960337,1751412430811,-500.0,0.00017244,2]
[368960338,1751412430842,-389.05420778,0.00017244,2]
[368960339,1751412431042,-110.94579222,0.00017244,2]
[368960340,1751412431068,-500.0,0.00017244,2]
[368960341,1751412431088,-289.51328791,0.00017244,2]
[368960342,1751412436178,-23.31150939,0.00017244,2]
[368960343,1751412436201,-500.0,0.00017244,2]
[368960344,1751412436224,-374.26951922,0.00017244,2]
[368960345,1751412524777,301.999999,0.00025158,120]
[368960405,1751412632496,-284.91981695,0.00017223,2]
[368960406,1751412632506,-442.17388326,0.00017242,2]
[368960408,1751412632518,-17.82611674,0.00017242,2]
[368960409,1751412632528,-186.0,0.00017242,2]
[368960411,1751412632537,-300.0,0.00017242,2]
[368960413,1751412632547,-187.0,0.00017242,2]
[368960415,1751412632556,-460.0,0.00017242,2]
[368960416,1751412632565,-460.0,0.00017242,2]
[368960418,1751412632575,-462.37437474,0.00017242,2]
[368960420,1751412632585,-77.00435955,0.00017242,2]
[368960422,1751412632596,-382.99564045,0.00017242,2]
[368960424,1751412632606,-460.0,0.00017242,2]
[368960426,1751412632616,-500.0,0.00017242,2]
[368960427,1751412632625,-500.0,0.00017242,2]
[368960428,1751412632634,-154.27289891,0.00017242,2]
[368960429,1751412632654,-500.0,0.00017242,2]
[368960430,1751412632665,-500.0,0.00017242,2]
[368960431,1751412632675,-500.0,0.00017242,2]
[368960432,1751412632686,-500.0,0.00017242,2]
[368960433,1751412632695,-500.0,0.00017242,2]
[368960434,1751412632705,-500.0,0.00017242,2]
[368960435,1751412632715,-500.0,0.00017242,2]
[368960436,1751412632725,-500.0,0.00017242,2]
[368960437,1751412632735,-556.91117905,0.00017242,2]
[368960438,1751412632744,-500.0,0.00017242,2]
[368960439,1751412632754,-500.0,0.00017242,2]
[368960440,1751412632764,-500.0,0.00017242,2]
[368960441,1751412632774,-413.7984741,0.00017242,2]
[368960442,1751412632784,-169.41825131,0.00017242,2]
[368960443,1751412632794,-500.0,0.00017242,2]
[368960444,1751412632804,-500.0,0.00017242,2]
[368960445,1751412632814,-193.47272153,0.00017242,2]
[368960446,1751412632825,-500.0,0.00017242,2]
[368960447,1751412632834,-342.11479447,0.00017242,2]
[368960477,1751412638441,-460.0,0.00017242,2]
[368960479,1751412638452,-157.88520553,0.00017242,2]
[368960482,1751412638467,-500.0,0.00017242,2]
[368960484,1751412638476,-500.0,0.00017242,2]
[368960485,1751412638486,-500.0,0.00017242,2]
[368960487,1751412638496,-500.0,0.00017242,2]
[368960489,1751412638505,-225.35624536,0.00017242,2]
[368960491,1751412638516,-460.0,0.00017244,2]
[368960493,1751412638525,-460.0,0.00017244,2]
[368960495,1751412638535,-460.0,0.00017244,2]
[368960497,1751412638544,-460.0,0.00017244,2]
[368960499,1751412638554,-460.0,0.00017244,2]
[368960501,1751412638563,-460.0,0.00017244,2]
[368960503,1751412638573,-461.63871391,0.00017244,2]
[368960505,1751412638582,-460.0,0.00017244,2]
[368960507,1751412638592,-460.0,0.00017244,2]
[368960509,1751412638601,-460.0,0.00017244,2]
[368960510,1751412638611,-460.0,0.00017244,2]
[368960512,1751412638621,-460.0,0.00017244,2]
[368960514,1751412638630,-460.0,0.00017244,2]
[368960516,1751412638640,-460.0,0.00017244,2]
[368960518,1751412638650,-460.0,0.00017244,2]
[368960520,1751412638660,-173.53476524,0.00017244,2]
[368960522,1751412638672,-286.46523476,0.00017244,2]
[368960524,1751412638682,-460.0,0.00017244,2]
[368960526,1751412638692,-460.0,0.00017244,2]
[368960528,1751412638701,-408.20672344,0.00017244,2]
[368960530,1751412638714,-2371.8147564,0.00017244,2]
[368961259,1751412646688,-203.38387617,0.00017146,2]
[368961261,1751412646698,-460.0,0.00017242,2]
[368961263,1751412646708,-260.9836,0.00017242,2]
[368961265,1751412646718,-540.0,0.00017242,2]
[368961267,1751412646727,-460.0,0.00017242,2]
[368961269,1751412646736,-500.0,0.00017242,2]
[368961271,1751412646746,-480.17051775,0.00017242,2]
[368961273,1751412646755,-500.0,0.00017242,2]
[368961275,1751412646765,-500.0,0.00017242,2]
[368961277,1751412646774,-500.0,0.00017242,2]
[368961279,1751412646783,-394.79166047,0.00017242,2]
[368961281,1751412646793,-500.0,0.00017242,2]
[368961283,1751412646802,-247.76681223,0.00017242,2]
[368961286,1751412646812,-500.0,0.00017242,2]
[368961288,1751412646821,-355.5928266,0.00017242,2]
[368961290,1751412646830,-500.0,0.00017242,2]
[368961292,1751412646840,-500.0,0.00017242,2]
[368961294,1751412646849,-500.0,0.00017242,2]
[368961296,1751412646858,-500.0,0.00017242,2]
[368961298,1751412646867,-500.0,0.00017242,2]
[368961300,1751412646877,-500.0,0.00017242,2]
[368961302,1751412646886,-500.0,0.00017242,2]
[368961304,1751412646895,-460.0,0.00017244,2]